fUSD/lending_fUSD_20250201
["ID","MTS","AMOUNT","RATE_DAILY","PERIOD"]
[351188646,1738402242115,-500.0,0.00016843,2]
[351188647,1738402242127,-500.0,0.00016843,2]
[351188648,1738402242136,-500.0,0.00016843,2]
[351188649,1738402242146,-691.87,0.00016843,2]
[351188650,1738402242155,-500.0,0.00016843,2]
[351188651,1738402242165,-500.0,0.00016843,2]
[351188652,1738402242174,-500.0,0.00016843,2]
[351188653,1738402242184,-500.0,0.00016843,2]
[351188654,1738402242194,-726.69,0.00016843,2]
[351188655,1738402242203,-500.0,0.00016843,2]
[351188656,1738402242212,-500.0,0.00016843,2]
[351188657,1738402242222,-419.28276634,0.00016843,2]
[351188658,1738402242231,-500.0,0.00016843,2]
[351188659,1738402242240,-500.0,0.00016843,2]
[351188660,1738402242249,-500.0,0.00016843,2]
[351188661,1738402242259,-500.0,0.00016843,2]
[351188662,1738402242268,-500.0,0.00016843,2]
[351188663,1738402242277,-500.0,0.00016843,2]
[351188664,1738402242286,-500.0,0.00016843,2]
[351188665,1738402242296,-533.3,0.00016843,2]
[351188666,1738402242305,-500.0,0.00016843,2]
[351188667,1738402242315,-500.0,0.00016843,2]
[351188668,1738402242324,-500.0,0.00016843,2]
[351188669,1738402242334,-500.0,0.00016843,2]
[351188670,1738402242343,-500.0,0.00016843,2]
[351188671,1738402242353,-500.0,0.00016843,2]
[351188672,1738402242363,-500.0,0.00016843,2]
[351188673,1738402242372,-500.0,0.00016843,2]
[351188674,1738402242384,-2445.93,0.00016843,2]
[351188675,1738402242394,-500.0,0.00016843,2]
[351188676,1738402242403,-500.0,0.00016843,2]
[351188677,1738402242413,-500.0,0.00016843,2]
[351188678,1738402242422,-500.0,0.00016843,2]
[351188679,1738402242432,-500.0,0.00016843,2]
[351188680,1738402242441,-500.0,0.00016844,2]
[351188681,1738402242451,-500.0,0.00016844,2]
[351188682,1738402242460,-500.0,0.00016844,2]
[351188684,1738402242470,-200.0,0.00016844,2]
[351188685,1738402242479,-500.0,0.00016844,2]
[351188686,1738402242489,-500.0,0.00016844,2]
[351188687,1738402242498,-500.0,0.00016844,2]
[351188688,1738402242508,-500.0,0.00016844,2]
[351188689,1738402242517,-500.0,0.00016844,2]
[351188690,1738402242527,-486.74994642,0.00016844,2]
[351188691,1738402242536,-610.2641425,0.00016844,2]
[351188692,1738402242545,-500.0,0.00016844,2]
[351188693,1738402242554,-153.86,0.00016844,2]
[351188694,1738402242563,-500.0,0.00016844,2]
[351188695,1738402242573,-500.0,0.00016844,2]
[351188697,1738402242582,-500.0,0.00016844,2]
[351188699,1738402242591,-500.0,0.00016844,2]
[351188701,1738402242600,-500.0,0.00016844,2]
[351188702,1738402242610,-500.0,0.00016844,2]
[351188703,1738402242619,-172.39,0.00016844,2]
[351188704,1738402242631,-500.0,0.00016844,2]
[351188705,1738402242640,-333.85,0.00016844,2]
[351188706,1738402242649,-336.77,0.00016844,2]
[351188707,1738402242659,-432.13001069,0.00016844,2]
[351188709,1738402242814,-500.0,0.00016844,2]
[351188710,1738402242824,-500.0,0.00016844,2]
[351188711,1738402242833,-220.28,0.00016844,2]
[351188712,1738402242843,-500.0,0.00016844,2]
[351188713,1738402242856,-336.6,0.00016844,2]
[351188714,1738402242865,-313.51241469,0.00016844,2]
[351188715,1738402242876,-334.81,0.00016844,2]
[351188716,1738402242886,-262.69,0.00016844,2]
[351188717,1738402242896,-361.44,0.00016844,2]
[351188718,1738402242906,-500.0,0.00016844,2]
[351188719,1738402242915,-500.0,0.00016844,2]
[351188720,1738402242924,-500.0,0.00016844,2]
[351188721,1738402242934,-500.0,0.00016844,2]
[351188722,1738402242944,-500.0,0.00016844,2]
[351188723,1738402242954,-560.56,0.00016844,2]
[351188724,1738402242963,-500.0,0.00016844,2]
[351188725,1738402242972,-500.0,0.00016844,2]
[351188726,1738402242981,-294.46,0.00016844,2]
[351188727,1738402242991,-457.93,0.00016844,2]
[351188728,1738402243001,-271.57071408,0.00016844,2]
[351188729,1738402243011,-500.0,0.00016844,2]
[351188730,1738402243020,-533.56,0.00016844,2]
[351188732,1738402243029,-551.75651731,0.00016844,2]
[351188734,1738402243039,-908.22,0.00016844,2]
[351188736,1738402243048,-500.0,0.00016844,2]
[351188738,1738402243057,-500.0,0.00016844,2]
[351188739,1738402243066,-300.52,0.00016844,2]
[351188740,1738402243076,-512.15,0.00016844,2]
[351188741,1738402243086,-1878.9,0.00016844,2]
[351188742,1738402243095,-897.9,0.00016844,2]
[351188743,1738402243105,-500.0,0.00016844,2]
[351188744,1738402243115,-1012.27,0.00016844,2]
[351188745,1738402243126,-300.0,0.00016844,2]
[351188746,1738402243136,-500.0,0.00016844,2]
[351188748,1738402243145,-1791.12,0.00016844,2]
[351188749,1738402243155,-1000.0,0.00016844,2]
[351188750,1738402243164,-965.37,0.00016844,2]
[351188751,1738402243174,-500.0,0.00016844,2]
[351188752,1738402243183,-1970.62,0.00016844,2]
[351188753,1738402243193,-500.0,0.00016844,2]
[351188754,1738402243203,-500.0,0.00016844,2]
[351188755,1738402243212,-500.0,0.00016844,2]
[351188756,1738402243222,-1540.45,0.00016844,2]
[351188757,1738402243231,-1660.42,0.00016844,2]
[351188758,1738402243240,-492.32479718,0.00016844,2]
[351188759,1738402243250,-1768.52,0.00016844,2]
[351188760,1738402243259,-500.0,0.00016844,2]
[351188761,1738402243269,-500.0,0.00016844,2]
[351188762,1738402243277,-1518.18,0.00016844,2]
[351188763,1738402243287,-500.0,0.00016844,2]
[351188764,1738402243296,-1202.14,0.00016844,2]
[351188765,1738402243305,-500.0,0.00016844,2]
[351188766,1738402243315,-500.0,0.00016844,2]
[351188767,1738402243324,-1812.79,0.00016844,2]
[351188768,1738402243334,-500.0,0.00016844,2]
[351188769,1738402243343,-612.06764627,0.00016844,2]
[351188770,1738402243353,-929.0,0.00016844,2]
[351188771,1738402243362,-500.0,0.00016844,2]
[351188772,1738402243371,-500.0,0.00016844,2]
[351188773,1738402243383,-500.0,0.00016844,2]
[351188774,1738402243392,-500.0,0.00016844,2]
[351188775,1738402243402,-500.0,0.00016844,2]
[351188776,1738402243411,-500.0,0.00016844,2]
[351188777,1738402243421,-500.0,0.00016844,2]
[351188778,1738402243430,-500.0,0.00016844,2]
[351188779,1738402243439,-583.78,0.00016844,2]
[351188780,1738402243449,-500.0,0.00016844,2]
[351188781,1738402243458,-500.0,0.00016844,2]
[351188782,1738402243467,-500.0,0.00016844,2]
[351188783,1738402243476,-882.63,0.00016844,2]
[351188784,1738402243486,-500.0,0.00016844,2]
[351188785,1738402243495,-500.0,0.00016844,2]
[351188786,1738402243505,-500.0,0.00016844,2]
[351188787,1738402243515,-500.0,0.00016844,2]
[351188788,1738402243525,-500.0,0.00016844,2]
[351188789,1738402243535,-529.55655547,0.00016844,2]
[351188790,1738402243545,-221.16654323,0.00016844,2]
[351188791,1738402243554,-500.0,0.00016844,2]
[351188792,1738402243564,-500.0,0.00016844,2]
[351188793,1738402243573,-525.67,0.00016844,2]
[351188794,1738402243582,-500.0,0.00016844,2]
[351188795,1738402243592,-500.0,0.00016844,2]
[351188796,1738402243602,-674.98,0.00016844,2]
[351188797,1738402243611,-500.0,0.00016844,2]
[351188798,1738402243620,-500.0,0.00016844,2]
[351188799,1738402243630,-542.45,0.00016844,2]
[351188800,1738402243639,-500.0,0.00016844,2]
[351188801,1738402243648,-500.0,0.00016844,2]
[351188802,1738402243658,-500.0,0.00016844,2]
[351188803,1738402243667,-775.34,0.00016844,2]
[351188804,1738402243676,-500.0,0.00016844,2]
[351188805,1738402243686,-1325.45,0.00016844,2]
[351188806,1738402243695,-500.0,0.00016844,2]
[351188807,1738402243704,-1176.58,0.00016844,2]
[351188808,1738402243714,-500.0,0.00016844,2]
[351188809,1738402243723,-2353.57,0.00016844,2]
[351188810,1738402243732,-276.20086079,0.00016844,2]
[351188811,1738402243741,-500.0,0.00016844,2]
[351188812,1738402243751,-500.0,0.00016844,2]
[351188813,1738402243760,-5917.94,0.00016844,2]
[351188814,1738402243770,-500.0,0.00016844,2]
[351188815,1738402243779,-1251.72,0.00016844,2]
[351188816,1738402243789,-500.0,0.00016844,2]
[351188817,1738402243798,-500.0,0.00016844,2]
[351188818,1738402243807,-665.71,0.00016844,2]
[351188819,1738402243816,-638.35862009,0.00016845,2]
[351188820,1738402243825,-500.0,0.00016845,2]
[351188821,1738402243834,-500.0,0.00016845,2]
[351188822,1738402243843,-500.0,0.00016845,2]
[351188823,1738402243854,-214.53751533,0.00016845,2]
[351188824,1738402243863,-500.0,0.00016845,2]
[351188825,1738402243873,-205.29,0.00016845,2]
[351188826,1738402243886,-500.0,0.00016845,2]
[351188827,1738402243895,-500.0,0.00016845,2]
[351188828,1738402243904,-500.0,0.00016845,2]
[351188829,1738402243913,-500.0,0.00016845,2]
[351188830,1738402243923,-500.0,0.00016845,2]
[351188831,1738402243932,-500.0,0.00016845,2]
[351188832,1738402243941,-500.0,0.00016845,2]
[351188833,1738402243950,-500.0,0.00016845,2]
[351188834,1738402243960,-500.0,0.00016845,2]
[351188835,1738402243969,-500.0,0.00016845,2]
[351188836,1738402243978,-500.0,0.00016845,2]
[351188837,1738402243988,-500.0,0.00016845,2]
[351188838,1738402243997,-500.0,0.00016845,2]
[351188839,1738402244006,-500.0,0.00016845,2]
[351188840,1738402244015,-500.0,0.00016845,2]
[351188841,1738402244024,-500.0,0.00016845,2]
[351188842,1738402244033,-512.42,0.00016845,2]
[351188843,1738402244042,-500.0,0.00016845,2]
[351188844,1738402244051,-500.0,0.00016845,2]
[351188845,1738402244061,-539.77,0.00016845,2]
[351188846,1738402244070,-500.0,0.00016845,2]
[351188847,1738402244079,-500.0,0.00016845,2]
[351188848,1738402244089,-500.0,0.00016845,2]
[351188849,1738402244098,-635.11121942,0.00016845,2]
[351188850,1738402244108,-500.0,0.00016845,2]
[351188851,1738402244118,-500.0,0.00016845,2]
[351188852,1738402244130,-500.0,0.00016846,2]
[351188853,1738402244140,-500.0,0.00016846,2]
[351188854,1738402244149,-500.0,0.00016846,2]
[351188855,1738402244159,-1112.58,0.00016849,2]
[351188856,1738402244168,-1035.42,0.00016849,2]
[351188857,1738402244177,-500.0,0.00016849,2]
[351188858,1738402244186,-2168.35,0.00016849,2]
[351188859,1738402244196,-837.16,0.00016849,2]
[351188860,1738402244205,-1040.72,0.00016849,2]
[351188861,1738402244215,-2108.13,0.00016849,2]
[351188862,1738402244224,-1249.28,0.00016849,2]
[351188863,1738402244233,-1320.63,0.00016849,2]
[351188864,1738402244243,-500.0,0.00016849,2]
[351188865,1738402244252,-500.0,0.00016849,2]
[351188866,1738402244261,-747.82,0.00016849,2]
[351188867,1738402244271,-1122.1,0.00016849,2]
[351188868,1738402244280,-2080.36,0.00016849,2]
[351188869,1738402244290,-2096.39,0.00016849,2]
[351188870,1738402244299,-1366.57,0.00016849,2]
[351188871,1738402244310,-1298.95,0.00016849,2]
[351188872,1738402244320,-500.0,0.00016849,2]
[351188873,1738402244329,-3412.19,0.00016849,2]
[351188874,1738402244339,-500.0,0.00016849,2]
[351188875,1738402244348,-861.08,0.00016849,2]
[351188876,1738402244357,-500.0,0.00016849,2]
[351188877,1738402244366,-500.0,0.00016849,2]
[351188878,1738402244375,-500.0,0.00016849,2]
[351188879,1738402244385,-500.0,0.00016849,2]
[351188880,1738402244395,-500.0,0.00016849,2]
[351188881,1738402244404,-500.0,0.00016849,2]
[351188882,1738402244414,-2107.48,0.00016849,2]
[351188883,1738402244423,-1711.16,0.00016849,2]
[351188884,1738402244432,-500.0,0.00016849,2]
[351188885,1738402244441,-171.52064563,0.00016849,2]
[351188886,1738402244450,-839.88,0.00016849,2]
[351188887,1738402244459,-687.57,0.00016849,2]
[351188888,1738402244468,-769.49,0.00016849,2]
[351188889,1738402244477,-1491.95,0.00016849,2]
[351188890,1738402244487,-500.0,0.00016849,2]
[351188891,1738402244496,-500.0,0.00016873,2]
[351188892,1738402244505,-500.0,0.00016873,2]
[351188893,1738402244514,-500.0,0.00016873,2]
[351188894,1738402244523,-500.0,0.00016873,2]
[351188895,1738402244533,-608071.42490103,0.0001688,2]
[351188896,1738402245044,-509.21116118,0.00016438,2]
[351188897,1738402245054,-500.0,0.00016438,2]
[351188898,1738402245064,-3473.01,0.00016712,2]
[351188899,1738402245073,-344.82852773,0.00016844,2]
[351188900,1738402245108,-155.17147227,0.00016844,2]
[351188901,1738402245117,-596.42852773,0.00016849,2]
[351188902,1738402245147,-648.79351158,0.00016849,2]
[351188903,1738402245369,-500.0,0.00016438,2]
[351188904,1738402245381,-563.10720974,0.00016438,2]
[351188905,1738402245390,-500.0,0.00016575,2]
[351188906,1738402245400,-500.0,0.00016712,2]
[351188907,1738402245410,-2227.78796069,0.00016849,2]
[351188908,1738402245420,-500.0,0.00016849,2]
[351188909,1738402245429,-2853.81672017,0.0001688,2]
[351188910,1738402245441,-363.72353587,0.0001688,2]
[351188911,1738402245452,-29284.35061887,0.0001688,2]
[351188912,1738402245463,-2340.78163978,0.0001688,2]
[351188913,1738402245494,-500.0,0.00016438,2]
[351188914,1738402245503,-15883.31557669,0.0001688,2]
[351188915,1738402245514,-419.81652618,0.0001688,2]
[351188916,1738402245525,-673.42889055,0.0001688,2]
[351188917,1738402245538,-251473.89157398,0.0001688,2]
[351188918,1738402245547,-379.2820144,0.0001688,2]
[351188919,1738402245557,-200.0,0.000169,6]
[351188921,1738402245566,-800.0,0.00016922,2]
[351188923,1738402245575,-1482.69085641,0.00016934,2]
[351188925,1738402245584,-4806.0734028,0.00016946,2]
[351188927,1738402245593,-500.0,0.00016979,2]
[351188929,1738402245602,-778.63,0.00016979,2]
[351188942,1738402245769,-500.0,0.00016979,2]
[351188943,1738402245779,-500.0,0.00016979,2]
[351188945,1738402245789,-870.67,0.00016979,2]
[351188947,1738402245798,-485.179489,0.00016979,2]
[351188948,1738402245806,-823.56,0.00016979,2]
[351188950,1738402245816,-545.603151,0.00016979,2]
[351188951,1738402245825,-665.52,0.00016979,2]
[351188953,1738402245834,-1070.55,0.00016979,2]
[351188955,1738402245844,-730.63,0.00016979,2]
[351188957,1738402245854,-1754.88,0.00016979,2]
[351188958,1738402245864,-2291.1,0.00016979,2]
[351188960,1738402245873,-1209.07,0.00016979,2]
[351188962,1738402245884,-2523.89,0.00016979,2]
[351188963,1738402245896,-718.0,0.00016979,2]
[351188965,1738402245905,-827.98,0.00016979,2]
[351188967,1738402245915,-830.73,0.00016979,2]
[351188969,1738402245924,-2560.91,0.00016979,2]
[351188971,1738402245933,-500.0,0.00016979,2]
[351188972,1738402245942,-2555.61,0.00016979,2]
[351188974,1738402245952,-1668.24,0.00016979,2]
[351188976,1738402245961,-500.0,0.0001698,2]
[351188978,1738402245971,-500.0,0.0001698,2]
[351188979,1738402245980,-500.0,0.0001698,2]
[351188981,1738402245989,-500.0,0.0001698,2]
[351188982,1738402245998,-500.0,0.0001698,2]
[351188983,1738402246007,-500.0,0.0001698,2]
[351188984,1738402246016,-500.0,0.0001698,2]
[351188985,1738402246026,-500.0,0.0001698,2]
[351188986,1738402246035,-600.0,0.0001698,2]
[351188987,1738402246045,-500.0,0.0001698,2]
[351188988,1738402246054,-500.0,0.0001698,2]
[351188989,1738402246064,-500.0,0.0001698,2]
[351188990,1738402246074,-500.0,0.0001698,2]
[351188991,1738402246083,-500.0,0.0001698,2]
[351188992,1738402246093,-500.0,0.0001698,2]
[351188993,1738402246102,-500.0,0.0001698,2]
[351188994,1738402246112,-500.0,0.0001698,2]
[351188995,1738402246121,-500.0,0.0001698,2]
[351188996,1738402246132,-500.0,0.0001698,2]
[351188997,1738402246142,-500.0,0.0001698,2]
[351188998,1738402246151,-500.0,0.0001698,2]
[351188999,1738402246161,-500.0,0.0001698,2]
[351189000,1738402246170,-500.0,0.0001698,2]
[351189001,1738402246179,-500.0,0.0001698,2]
[351189002,1738402246189,-500.0,0.0001698,2]
[351189003,1738402246198,-500.0,0.0001698,2]
[351189004,1738402246207,-500.0,0.0001698,2]
[351189005,1738402246217,-500.0,0.0001698,2]
[351189006,1738402246227,-500.0,0.0001698,2]
[351189007,1738402246238,-500.0,0.0001698,2]
[351189008,1738402246247,-500.0,0.0001698,2]
[351189009,1738402246256,-500.0,0.0001698,2]
[351189010,1738402246266,-500.0,0.0001698,2]
[351189011,1738402246275,-500.0,0.0001698,2]
[351189012,1738402246285,-502.42,0.0001698,2]
[351189013,1738402246294,-530.51,0.0001698,2]
[351189014,1738402246304,-538.02,0.0001698,2]
[351189015,1738402246313,-601.81,0.0001698,2]
[351189016,1738402246323,-744.35,0.0001698,2]
[351189017,1738402246332,-556.63,0.0001698,2]
[351189018,1738402246341,-1240.72,0.0001698,2]
[351189019,1738402246350,-1627.2,0.0001698,2]
[351189020,1738402246360,-500.0,0.0001698,2]
[351189021,1738402246369,-500.0,0.0001698,2]
[351189022,1738402246379,-572.35,0.0001698,2]
[351189023,1738402246389,-500.0,0.0001698,2]
[351189024,1738402246399,-503.43,0.0001698,2]
[351189025,1738402246408,-594.91,0.0001698,2]
[351189026,1738402246418,-500.0,0.0001698,2]
[351189027,1738402246429,-596.8374711,0.0001698,2]
[351189028,1738402246439,-553.11,0.0001698,2]
[351189029,1738402246449,-1164.1,0.0001698,2]
[351189030,1738402246458,-716.33,0.0001698,2]
[351189031,1738402246468,-1821.6,0.0001698,2]
[351189032,1738402246478,-500.0,0.0001698,2]
[351189033,1738402246487,-584.85,0.0001698,2]
[351189034,1738402246497,-1558.91,0.0001698,2]
[351189035,1738402246506,-500.0,0.0001698,2]
[351189036,1738402246516,-683.8,0.0001698,2]
[351189037,1738402246526,-500.0,0.0001698,2]
[351189038,1738402246535,-662.99,0.0001698,2]
[351189039,1738402246544,-500.0,0.0001698,2]
[351189040,1738402246554,-1422.18,0.0001698,2]
[351189041,1738402246562,-500.0,0.0001698,2]
[351189042,1738402246572,-631.7,0.0001698,2]
[351189043,1738402246582,-517.61,0.0001698,2]
[351189044,1738402246592,-500.0,0.0001698,2]
[351189045,1738402246601,-500.0,0.0001698,2]
[351189046,1738402246611,-500.0,0.0001698,2]
[351189047,1738402246620,-691.87,0.0001698,2]
[351189048,1738402246629,-500.0,0.0001698,2]
[351189049,1738402246639,-500.0,0.0001698,2]
[351189050,1738402246649,-500.0,0.0001698,2]
[351189051,1738402246658,-726.69,0.0001698,2]
[351189052,1738402246667,-500.0,0.0001698,2]
[351189053,1738402246676,-500.0,0.0001698,2]
[351189054,1738402246685,-500.0,0.0001698,2]
[351189055,1738402246695,-500.0,0.0001698,2]
[351189056,1738402246704,-500.0,0.0001698,2]
[351189057,1738402246713,-500.0,0.0001698,2]
[351189058,1738402246723,-500.0,0.0001698,2]
[351189059,1738402246732,-500.0,0.0001698,2]
[351189060,1738402246741,-500.0,0.0001698,2]
[351189061,1738402246750,-533.3,0.0001698,2]
[351189062,1738402246760,-500.0,0.0001698,2]
[351189063,1738402246769,-500.0,0.0001698,2]
[351189064,1738402246778,-500.0,0.0001698,2]
[351189065,1738402246787,-500.0,0.0001698,2]
[351189066,1738402246797,-500.0,0.0001698,2]
[351189067,1738402246806,-500.0,0.0001698,2]
[351189068,1738402246815,-500.0,0.0001698,2]
[351189069,1738402246824,-2445.93,0.0001698,2]
[351189070,1738402246834,-500.0,0.0001698,2]
[351189071,1738402246843,-500.0,0.0001698,2]
[351189072,1738402246854,-500.0,0.0001698,2]
[351189073,1738402246866,-500.0,0.0001698,2]
[351189074,1738402246876,-500.0,0.0001698,2]
[351189075,1738402246887,-500.0,0.00016981,2]
[351189076,1738402246898,-229.7,0.00016981,2]
[351189077,1738402246907,-200.0,0.00016981,2]
[351189078,1738402246918,-500.0,0.00016981,2]
[351189079,1738402246928,-517.08,0.00016981,2]
[351189080,1738402246939,-500.0,0.00016981,2]
[351189081,1738402246949,-500.0,0.00016981,2]
[351189082,1738402246959,-500.0,0.00016981,2]
[351189083,1738402246968,-500.0,0.00016981,2]
[351189084,1738402246977,-500.0,0.00016981,2]
[351189085,1738402246987,-500.0,0.00016981,2]
[351189086,1738402246996,-377.19,0.00016981,2]
[351189087,1738402247005,-441.96865411,0.00016981,2]
[351189088,1738402247014,-500.0,0.00016981,2]
[351189089,1738402247024,-449.5,0.00016981,2]
[351189090,1738402247033,-500.0,0.00016981,2]
[351189091,1738402247042,-500.0,0.00016981,2]
[351189092,1738402247051,-500.0,0.00016981,2]
[351189093,1738402247061,-389.88949036,0.00016981,2]
[351189094,1738402247070,-502.18,0.00016981,2]
[351189095,1738402247079,-533.56,0.00016981,2]
[351189096,1738402247089,-908.22,0.00016981,2]
[351189097,1738402247099,-234.76,0.00016981,2]
[351189098,1738402247108,-500.0,0.00016981,2]
[351189099,1738402247117,-512.15,0.00016981,2]
[351189100,1738402247127,-1878.9,0.00016981,2]
[351189101,1738402247137,-897.9,0.00016981,2]
[351189102,1738402247150,-206.19691942,0.00016981,2]
[351189103,1738402247160,-1012.27,0.00016981,2]
[351189104,1738402247170,-300.0,0.00016981,2]
[351189105,1738402247179,-1791.12,0.00016981,2]
[351189106,1738402247188,-1000.0,0.00016981,2]
[351189107,1738402247198,-965.37,0.00016981,2]
[351189108,1738402247207,-500.0,0.00016981,2]
[351189109,1738402247216,-1970.62,0.00016981,2]
[351189110,1738402247226,-500.0,0.00016981,2]
[351189111,1738402247235,-500.0,0.00016981,2]
[351189112,1738402247244,-500.0,0.00016981,2]
[351189113,1738402247254,-1540.45,0.00016981,2]
[351189114,1738402247264,-1660.42,0.00016981,2]
[351189115,1738402247273,-1768.52,0.00016981,2]
[351189116,1738402247283,-500.0,0.00016981,2]
[351189117,1738402247292,-187.57574087,0.00016981,2]
[351189118,1738402247302,-1518.18,0.00016981,2]
[351189119,1738402247311,-500.0,0.00016981,2]
[351189120,1738402247321,-1202.14,0.00016981,2]
[351189121,1738402247330,-500.0,0.00016981,2]
[351189122,1738402247340,-500.0,0.00016981,2]
[351189123,1738402247349,-1812.79,0.00016981,2]
[351189124,1738402247359,-500.0,0.00016981,2]
[351189125,1738402247369,-929.0,0.00016981,2]
[351189126,1738402247378,-500.0,0.00016981,2]
[351189127,1738402247389,-500.0,0.00016981,2]
[351189128,1738402247398,-500.0,0.00016981,2]
[351189129,1738402247408,-500.0,0.00016981,2]
[351189130,1738402247417,-500.0,0.00016981,2]
[351189131,1738402247427,-583.78,0.00016981,2]
[351189132,1738402247436,-500.0,0.00016981,2]
[351189133,1738402247446,-500.0,0.00016981,2]
[351189134,1738402247456,-882.63,0.00016981,2]
[351189135,1738402247465,-500.0,0.00016981,2]
[351189136,1738402247476,-500.0,0.00016981,2]
[351189137,1738402247485,-500.0,0.00016981,2]
[351189138,1738402247495,-500.0,0.00016981,2]
[351189139,1738402247504,-500.0,0.00016981,2]
[351189140,1738402247513,-392.72899294,0.00016981,2]
[351189141,1738402247523,-525.67,0.00016981,2]
[351189142,1738402247532,-602.83987692,0.00016981,2]
[351189143,1738402247541,-500.0,0.00016981,2]
[351189144,1738402247551,-674.98,0.00016981,2]
[351189145,1738402247560,-383.77934829,0.00016981,2]
[351189146,1738402247570,-572.48879884,0.00016981,2]
[351189147,1738402247579,-542.45,0.00016981,2]
[351189148,1738402247588,-500.0,0.00016981,2]
[351189149,1738402247597,-500.0,0.00016981,2]
[351189150,1738402247606,-775.34,0.00016981,2]
[351189151,1738402247615,-355.27326744,0.00016981,2]
[351189152,1738402247624,-1325.45,0.00016981,2]
[351189153,1738402247635,-500.0,0.00016981,2]
[351189154,1738402247651,-500.0,0.00016981,2]
[351189155,1738402247662,-1176.58,0.00016981,2]
[351189156,1738402247671,-500.0,0.00016981,2]
[351189157,1738402247680,-2353.57,0.00016981,2]
[351189158,1738402247691,-500.0,0.00016981,2]
[351189159,1738402247699,-2273.9519924,0.00016981,2]
[351189160,1738402248049,-167.63134371,0.00016438,2]
[351189161,1738402248059,-500.0,0.00016575,2]
[351189162,1738402248069,-500.0,0.00016712,2]
[351189163,1738402248078,-500.0,0.00016842,2]
[351189164,1738402248089,-507.9679695,0.00016843,2]
[351189165,1738402248099,-500.0,0.00016844,2]
[351189166,1738402248108,-361.96284639,0.00016849,2]
[351189167,1738402248119,-138.03715361,0.00016849,2]
[351189168,1738402248128,-500.0,0.00016979,2]
[351189169,1738402248139,-3643.9880076,0.00016981,2]
[351189170,1738402248149,-500.0,0.00016981,2]
[351189171,1738402248159,-1251.72,0.00016981,2]
[351189172,1738402248168,-500.0,0.00016981,2]
[351189173,1738402248178,-500.0,0.00016981,2]
[351189174,1738402248188,-665.71,0.00016981,2]
[351189175,1738402248197,-500.0,0.00016981,2]
[351189176,1738402248207,-500.0,0.00016981,2]
[351189177,1738402248217,-500.0,0.00016982,2]
[351189178,1738402248227,-500.0,0.00016982,2]
[351189179,1738402248238,-497.49885499,0.00016982,2]
[351189180,1738402248255,-2.50114501,0.00016982,2]
[351189181,1738402248265,-500.0,0.00016982,2]
[351189182,1738402248275,-22.36685499,0.00016982,2]
[351189184,1738402945843,1000.000001,0.00023,120]
[351189190,1738403283392,235.85,0.00010137,2]
[351189218,1738403432065,-150.0,0.00012247,2]
[351189219,1738403432075,-147.74999258,0.00013,2]
[351189220,1738403432087,-402.25000742,0.00013,2]
[351189221,1738403432106,-367.57084308,0.00013111,2]